bitfinex/quotes_ETHUSD_20240816
["timestamp","ask_amount","ask_price","bid_price","bid_amount"]
[1723801941542,3.80448,2628.5,2628.0,4.428386]
[1723801941834,3.80448,2628.5,2628.0,3.80506]
[1723801942035,0.1294138,2628.7,2628.3,3.80471]
[1723801942245,0.1294138,2628.7,2628.6,7.6086]
[1723801942385,0.1294138,2628.7,2628.6,29.4046]
[1723801943800,0.1294138,2628.7,2628.6,19.43]
[1723801945234,0.1294138,2628.7,2628.6,23.2343]
[1723801945402,0.1294138,2628.7,2628.6,29.7805271]
[1723801946394,0.1294138,2628.7,2628.6,32.2310271]
[1723801948009,0.1294138,2628.7,2628.6,36.0353271]
[1723801948332,0.1294138,2628.7,2628.6,32.2310271]
[1723801950126,0.1294138,2628.7,2628.6,19.43]
[1723801950527,0.1294138,2628.7,2628.6,23.2343]
[1723801950838,0.1294138,2628.7,2628.6,27.0386]
[1723801951055,0.1294138,2628.7,2628.6,23.2343]
[1723801952961,0.1294138,2628.7,2628.6,19.43]
[1723801953118,0.1294138,2628.7,2628.6,21.753443]
[1723801953320,0.1294138,2628.7,2628.6,25.557743]
[1723801953870,2.4749138,2628.7,2628.6,3.8043]
[1723801954074,2.4749138,2628.7,2627.6,2.4982]
[1723801954224,7.60912,2628.5,2627.8,3.80538]
[1723801954429,3.80469,2628.4,2627.9,0.76109]
[1723801955127,2.4749138,2628.7,2627.9,0.76109]
[1723801955128,3.80482,2628.3,2627.9,0.76109]
[1723801955342,3.80454,2628.5,2628.0,3.80507]
[1723801955534,6.2791138,2628.7,2627.9,3.80519]
[1723801955935,3.80445,2628.5,2628.0,0.380519]
[1723801956361,2.40755787,2628.4,2627.5,7.33]
[1723801956631,3.80496,2628.2,2627.6,3.80567]
[1723801957172,3.80505,2628.1,2627.5,14.94157]
[1723801957468,3.80505,2628.1,2627.6,1.494157]
[1723801957674,3.80505,2628.1,2627.6,3.80572]
[1723801957869,7.61016,2628.1,2627.6,3.80572]
[1723801958027,3.80532,2627.9,2627.4,3.80591]
[1723801958229,3.80546,2627.8,2627.3,23.23615]
[1723801958558,3.80546,2627.8,2627.4,2.323627]
[1723801959545,2.2611,2627.9,2627.4,2.323627]
[1723801959745,3.80524,2628.0,2627.5,3.80588]
[1723801959957,3.80524,2628.0,2626.7,3.80702]
[1723801959958,3.80569,2627.7,2627.2,3.80631]
[1723801960344,6.29901,2627.9,2627.2,3.8062]
[1723801960542,3.80548,2627.8,2627.3,0.38062]
[1723801960771,3.80548,2627.8,2627.3,4.18678]
[1723801960986,3.80511,2628.1,2627.4,3.8059]
[1723801961294,3.80511,2628.1,2627.5,3.80588]
[1723801961295,7.61022,2628.1,2627.5,3.80588]
[1723801961473,3.80539,2627.9,2627.4,4.224552]
[1723801961646,3.80539,2627.9,2627.4,3.8059]
[1723801961847,7.61079,2627.9,2627.3,3.80615]
[1723801962100,3.80539,2627.9,2627.4,0.761236]
[1723801962247,2.4848,2627.7,2626.6,7.33]
[1723801962453,3.13,2627.9,2626.6,3.80711]
[1723801962454,3.80606,2627.4,2626.6,3.80711]
[1723801962680,3.80606,2627.4,2626.8,3.80681]
[1723801962859,6.29062,2627.6,2627.1,3.8064]
[1723801962860,2.4848,2627.6,2627.1,3.8064]
[1723801963385,6.29058,2627.6,2627.1,3.8064]
[1723801963987,3.80552,2627.8,2626.6,5.75014]
[1723801963988,3.8064,2627.2,2626.7,3.80702]
[1723801964156,6.24496,2627.4,2626.5,3.80725]
[1723801964361,3.80606,2627.4,2626.8,3.80677]
[1723801964758,3.80606,2627.4,2626.8,7.61359]
[1723801964997,3.80606,2627.4,2626.8,7.6136]
[1723801965165,3.80606,2627.4,2626.8,4.56813]
[1723801965352,3.80582,2627.6,2627.0,3.80654]
[1723801965682,3.80592,2627.5,2627.0,3.80654]
[1723801966762,2.3838,2627.2,2626.8,3.80681]
[1723801966978,3.80591,2627.5,2626.9,3.80676]
[1723801967531,7.6119,2627.5,2626.9,3.80676]
[1723801967743,3.80605,2627.4,2626.9,3.80676]
[1723801968240,2.2769,2628.5,2627.6,3.8057]
[1723801968400,2.2769,2628.5,2628.0,3.80508]
[1723801968583,2.2769,2628.5,2627.8,3.80534]
[1723801968584,2.51753138,2628.5,2627.8,3.80534]
[1723801968785,7.6093,2628.4,2627.8,3.80534]
[1723801969024,3.80491,2628.2,2627.6,3.80566]
[1723801969537,3.8051,2628.1,2627.6,3.80566]
[1723801970390,3.80517,2628.0,2627.5,3.80589]
[1723801970707,3.80517,2628.0,2627.5,5.61069878]
[1723801971026,3.80534,2627.9,2627.4,3.80598]
[1723801972302,6.17147,2628.0,2627.4,3.80596]
[1723801972640,3.8056,2627.8,2627.2,3.80622]
[1723801972938,3.80533,2627.9,2627.4,3.80602]
[1723801973085,2.3663,2628.0,2627.5,3.80582]
[1723801973291,6.17147,2628.0,2627.4,3.80602]
[1723801973515,6.17147,2628.0,2627.4,7.61198]
[1723801973723,6.17147,2628.0,2627.4,7.61193]
[1723801974032,6.17147,2628.0,2627.4,3.80594]
[1723801974227,2.3663,2628.0,2627.4,4.186534]
[1723801974392,3.80511,2628.1,2627.6,3.80567]
[1723801974737,3.80518,2628.0,2627.4,4.186494]
[1723801974894,7.6099,2628.2,2627.6,3.80567]
[1723801975230,3.80503,2628.1,2627.6,3.80567]
[1723801975541,3.80518,2628.0,2627.5,0.4186494]
[1723801975693,3.80518,2628.0,2627.4,3.80589]
[1723801975889,3.80533,2627.9,2627.4,3.80589]
[1723801976194,3.80518,2628.0,2627.4,7.61182]
[1723801976399,3.80518,2628.0,2627.5,3.80587]
[1723801976836,3.80533,2627.9,2627.5,19.43]
[1723801977187,7.61043,2628.0,2627.5,19.43]
[1723801977395,3.80518,2628.0,2627.5,19.43]
[1723801977741,3.80518,2628.0,2627.5,23.23577]
[1723801978231,3.80518,2628.0,2627.5,25.939942]
[1723801978825,3.80496,2628.2,2627.5,25.939942]
[1723801979027,3.8051,2628.1,2627.5,29.745762]
[1723801979430,3.8051,2628.1,2627.6,3.80573]
[1723801979965,3.8052,2628.0,2627.5,22.134172]
[1723801980128,3.8052,2628.0,2627.5,23.23582]
[1723801980722,7.61046,2628.0,2627.5,23.23582]
[1723801980926,3.80541,2627.9,2627.5,19.43]
[1723801981529,3.8052,2628.0,2627.5,23.23589]
[1723801981836,3.80532,2627.9,2627.5,23.23589]
[1723801982241,7.6105,2628.0,2627.5,23.23589]
[1723801982437,3.8052,2628.0,2627.5,23.23581]
[1723801982639,3.8052,2628.0,2627.5,25.94]
[1723801982837,3.8052,2628.0,2627.5,6.51]
[1723801983044,3.8052,2628.0,2627.5,3.80581]
[1723801983476,3.8052,2628.0,2627.6,3.80574]
[1723801983981,3.80497,2628.2,2627.7,3.8056]
[1723801984283,3.80504,2628.1,2627.6,3.80575]
[1723801985277,3.80521,2628.0,2627.5,3.8058]
[1723801986399,3.80532,2627.9,2627.4,23.23603]
[1723801986597,3.80532,2627.9,2627.5,3.80589]
[1723801987336,3.80532,2627.9,2627.4,23.23601]
[1723801987720,3.80554,2627.8,2627.4,19.43]
[1723801987926,3.80509,2628.1,2627.6,3.80566]
[1723801988088,7.61023,2628.1,2627.6,2.323566]
[1723801988290,3.80517,2628.0,2627.5,3.8058]
[1723801988721,3.80517,2628.0,2627.2,7.33]
[1723801988722,3.80492,2628.2,2627.7,3.80551]
[1723801988929,2.4529,2628.3,2627.7,3.80551]
[1723801988930,6.25777,2628.3,2627.7,3.80551]
[1723801989131,3.80504,2628.1,2627.7,3.80551]
[1723801990638,3.80504,2628.1,2627.6,23.23575]
[1723801992345,3.80489,2628.2,2627.7,3.80551]
[1723801992753,3.80504,2628.1,2627.7,3.80551]
[1723801993340,3.8051,2628.1,2627.6,19.43]
[1723801993614,3.8054,2627.9,2627.6,19.43]
[1723801994252,3.8051,2628.1,2627.6,19.43]
[1723801994455,3.80532,2627.9,2627.6,19.43]
[1723801994761,3.80532,2627.9,2627.5,19.43]
[1723801995254,3.80532,2627.9,2627.5,23.23588]
[1723801995623,3.80532,2627.9,2627.5,19.43]
[1723801996209,3.80574,2627.7,2627.5,19.43]
[1723801996412,6.20806,2627.8,2627.5,19.43]
[1723801999820,3.8056,2627.7,2627.5,19.43]
[1723802000773,6.20807,2627.8,2627.3,23.2361]
[1723802000975,10.01364,2627.8,2627.3,23.2361]
[1723802001230,6.20807,2627.8,2627.3,27.0422]
[1723802001379,6.20807,2627.8,2627.3,23.2361]
[1723802002563,10.01361,2627.8,2627.3,23.2361]
[1723802002882,6.20807,2627.8,2627.3,23.72087088]
[1723802003583,10.01361,2627.8,2627.3,23.72087088]
[1723802003767,10.01361,2627.8,2627.3,23.2361]
[1723802004465,6.20807,2627.8,2627.3,23.2361]
[1723802005078,3.80532,2627.9,2627.5,3.80589]
[1723802005286,3.80532,2627.9,2627.5,6.510089]
[1723802005613,3.80525,2628.0,2627.5,6.510089]
[1723802005916,1.303,2627.9,2627.5,3.80581]
[1723802006702,1.303,2627.9,2627.5,23.23581]
[1723802007010,1.303,2627.9,2627.6,3.80573]
[1723802009808,1.303,2627.9,2627.5,23.23581]
[1723802010381,1.303,2627.9,2627.6,3.80574]
[1723802010710,1.303,2627.9,2627.5,23.23589]
[1723802010925,1.303,2627.9,2627.5,19.43]
[1723802011261,7.49394,2628.1,2627.6,3.80575]
[1723802011791,8.6864074,2628.1,2627.6,3.80575]
[1723802012525,8.6864074,2628.1,2627.6,23.23575]
[1723802012930,3.80519,2628.0,2627.6,23.23575]
[1723802013089,3.80519,2628.0,2627.6,19.43]
[1723802013275,1.303,2627.9,2627.6,19.43]
[1723802014280,1.303,2627.9,2627.6,23.23574]
[1723802017616,1.303,2627.9,2627.6,19.43]
[1723802020523,1.303,2627.9,2627.6,23.23571]
[1723802021124,1.303,2627.9,2627.6,19.43]
[1723802024411,1.303,2627.9,2627.5,23.23577]
[1723802025343,1.303,2627.9,2627.7,3.80559]
[1723802025515,1.303,2627.9,2627.5,25.808127]
[1723802025857,1.303,2627.9,2627.6,3.80566]
[1723802029661,1.303,2627.9,2627.5,19.43]
[1723802029867,1.303,2627.9,2627.5,23.23589]
[1723802030385,1.303,2627.9,2627.6,19.43]
[1723802030735,1.303,2627.7,2627.6,19.43]
[1723802030962,11.394,2627.7,2627.6,19.43]
[1723802031996,3.80524,2628.0,2627.6,19.43]
[1723802031997,3.80543,2627.9,2627.6,19.43]
[1723802032138,1.303,2627.7,2627.6,19.43]
[1723802034763,5.1086,2627.7,2627.6,19.43]
[1723802036407,5.1086,2627.7,2627.3,23.23608]
[1723802038741,3.8054,2627.9,2627.4,6.15103]
[1723802038941,1.303,2627.8,2627.4,6.15103]
[1723802039583,1.303,2627.8,2627.4,2.345]
[1723802041109,2.2606,2628.2,2627.5,3.80575]
[1723802041246,2.2606,2628.2,2627.4,2.345]
[1723802041247,5.10817,2628.0,2627.6,3.80564]
[1723802042154,1.303,2628.0,2627.6,3.80564]
[1723802044979,1.303,2628.0,2627.7,3.80559]
[1723802045713,1.303,2628.0,2627.6,3.80574]
[1723802045921,1.303,2627.8,2627.5,23.23588]
[1723802047684,7.42137,2627.8,2627.5,19.43]
[1723802048389,7.42137,2627.8,2627.3,23.23618]
[1723802049577,1.303,2627.6,2627.3,19.43]
[1723802050118,1.303,2627.6,2627.3,23.23617]
[1723802050483,1.303,2627.6,2627.3,19.43]
[1723802050919,2.3129,2627.8,2627.3,19.43]
[1723802051121,2.3129,2627.8,2627.5,3.80579]
[1723802051914,2.3129,2627.8,2627.4,3.80591]
[1723802052287,5.10835,2627.9,2627.4,3.80591]
[1723802054231,5.10835,2627.9,2627.4,23.23591]
[1723802054531,5.10633019,2627.9,2627.4,27.04185]
[1723802054727,6.21008,2628.0,2627.6,3.80575]
[1723802055031,1.303,2627.9,2627.6,3.80575]
[1723802055597,1.303,2627.9,2627.5,3.80589]
[1723802056625,3.7079,2628.0,2627.6,3.80575]
[1723802057730,7.51307,2628.0,2627.6,3.80575]
[1723802058740,3.7079,2628.0,2627.6,3.80575]
[1723802058902,3.7079,2628.0,2627.6,4.31660488]
[1723802059107,3.7079,2628.0,2627.6,4.31653488]
[1723802059308,3.7079,2628.0,2627.6,3.80568]
[1723802059743,3.7079,2628.0,2627.6,3.80567]
[1723802064351,1.303,2627.8,2627.6,3.80567]
[1723802066155,1.303,2627.8,2627.6,23.23567]
[1723802067340,3.7079,2628.0,2627.6,23.23567]
[1723802068066,3.7079,2628.0,2627.6,23.23566]
[1723802068228,1.303,2628.0,2627.6,23.23566]
[1723802069666,5.1082,2628.0,2627.6,23.23566]
[1723802070339,5.1082,2628.0,2627.6,19.43]
[1723802070734,1.303,2627.8,2627.6,19.43]
[1723802071066,3.8056,2627.7,2627.6,19.43]
[1723802072056,3.80578,2627.6,2627.2,3.80623]
[1723802072257,5.10878,2627.6,2627.1,23.23647]
[1723802072439,5.10878,2627.6,2627.2,3.80632]
[1723802072440,1.303,2627.6,2627.2,3.80632]
[1723802073952,1.303,2627.6,2627.2,3.80625]
[1723802075555,7.52842,2627.9,2627.4,3.8059]
[1723802075753,7.52842,2627.9,2627.6,3.80575]
[1723802075754,3.7231,2627.9,2627.6,3.80575]
[1723802076161,1.303,2627.9,2627.6,3.80575]
[1723802076682,1.303,2627.9,2627.4,9.86219]
[1723802076891,3.80555,2627.8,2627.3,3.80617]
[1723802077245,1.303,2627.7,2627.3,3.80617]
[1723802078091,1.303,2627.7,2627.3,23.23617]
[1723802078647,1.303,2627.7,2627.4,3.80599]
[1723802078849,1.303,2627.7,2627.5,3.80582]
[1723802079156,1.303,2627.9,2627.5,3.80582]
[1723802079377,1.303,2627.9,2627.5,7.61164]
[1723802079685,2.3786,2628.1,2627.3,23.23608]
[1723802079981,2.3786,2627.7,2627.3,23.23608]
[1723802080400,1.303,2627.8,2627.5,3.80589]
[1723802080695,1.303,2627.8,2627.4,2.323608]
[1723802081788,1.303,2627.8,2627.5,3.80588]
[1723802083799,7.1088477,2628.8,2627.7,3.80551]
[1723802084040,1.303,2628.1,2627.7,3.80551]
[1723802084212,7.54784,2628.1,2627.6,19.43]
[1723802084506,6.24484,2628.1,2627.6,19.43]
[1723802084707,6.24484,2628.1,2627.6,23.23571]
[1723802085508,1.303,2627.9,2627.6,23.23571]
[1723802087296,1.303,2627.9,2627.6,19.43]
[1723802087605,3.8056,2627.7,2627.6,19.43]
[1723802087813,5.1086,2627.7,2627.6,19.43]
[1723802088189,6.23445,2627.8,2627.6,19.43]
[1723802088681,2.4289,2627.8,2627.6,19.43]
[1723802089085,6.23443,2627.8,2627.6,19.43]
[1723802089592,3.8056,2627.7,2627.6,19.43]
[1723802089793,3.8056,2627.7,2627.2,3.80625]
[1723802089998,3.8056,2627.7,2627.2,5.88274412]
[1723802090412,3.8056,2627.7,2627.2,9.68900412]
[1723802090585,3.8056,2627.7,2627.2,5.88274412]
[1723802091222,3.8056,2627.7,2627.2,9.68900412]
[1723802091781,7.53736,2627.8,2627.4,3.80603]
[1723802092218,7.53736,2627.8,2627.3,4.94472076]
[1723802095890,3.80561,2627.7,2627.3,3.80618]
[1723802096089,7.53736,2627.8,2627.3,3.80618]
[1723802096318,7.53736,2627.8,2627.4,3.80603]
[1723802097339,7.53736,2627.8,2627.3,3.80612]
[1723802097634,7.53736,2627.8,2627.3,3.80611]
[1723802097936,7.53736,2627.8,2627.3,7.61222]
[1723802098096,7.53736,2627.8,2627.3,3.80611]
[1723802098638,7.53736,2627.8,2627.3,10.316467]
[1723802098929,7.53736,2627.8,2627.3,6.510357]
[1723802099132,7.53736,2627.8,2627.3,3.80611]
[1723802099636,7.53736,2627.8,2627.3,7.61222]
[1723802099937,7.53736,2627.8,2627.3,3.80611]
[1723802100132,7.53736,2627.8,2627.3,7.61223]
[1723802100334,3.7319,2627.8,2627.3,3.80611]
[1723802100633,3.7319,2627.8,2627.5,3.80589]
[1723802101560,2.3595,2628.1,2627.8,3.80544]
[1723802101690,3.6625,2628.1,2627.9,0.380544]
[1723802101895,3.6625,2628.1,2627.8,3.80539]
[1723802102859,3.6625,2628.1,2627.7,3.8056]
[1723802103895,1.303,2627.9,2627.6,3.80564]
[1723802105899,6.16465,2628.1,2627.6,3.80564]
[1723802106251,1.303,2628.0,2627.8,3.80545]
[1723802106635,2.3595,2628.1,2627.8,3.80545]
[1723802106839,2.3595,2628.1,2627.7,3.8056]
[1723802107782,3.80489,2628.2,2627.9,3.80519]
[1723802107783,1.303,2628.2,2627.9,3.80519]
[1723802108914,1.303,2628.2,2627.8,4.6290934]
[1723802109085,1.303,2628.2,2627.8,3.80542]
[1723802110953,1.303,2628.2,2627.9,3.8052]
[1723802111159,1.303,2628.2,2627.9,6.39474088]
[1723802111540,1.303,2628.2,2627.9,2.58954088]
[1723802111749,1.303,2628.2,2627.8,3.80545]
[1723802112002,1.303,2628.2,2627.8,3.80539]
[1723802113281,2.2905,2628.4,2627.9,19.43]
[1723802113479,2.2905,2628.4,2628.0,5.98582]
[1723802113669,2.2905,2628.4,2627.9,19.43]
[1723802113670,6.09509,2628.4,2627.9,19.43]
[1723802113986,0.1294138,2628.7,2627.9,19.43]
[1723802113987,6.10878,2628.1,2627.9,19.43]
[1723802114216,9.91392,2628.1,2627.9,19.43]
[1723802114377,3.80517,2628.0,2627.9,19.43]
[1723802114560,7.100172,2628.1,2627.9,19.43]
[1723802114561,10.905322,2628.1,2627.9,19.43]
[1723802114767,7.100172,2628.1,2627.9,19.43]
[1723802114964,8.403172,2628.1,2627.9,19.43]
[1723802115186,7.41178,2628.1,2627.9,19.43]
[1723802116000,3.80474,2628.3,2627.9,23.23529]
[1723802116150,5.10774,2628.3,2627.9,23.23529]
[1723802116351,3.80488,2628.2,2627.9,19.43]
[1723802116550,3.80488,2628.2,2627.7,3.80551]
[1723802117178,3.80488,2628.2,2627.7,7.61104]
[1723802117351,3.80488,2628.2,2627.7,3.80551]
[1723802117870,1.303,2628.3,2627.7,3.80551]
[1723802118088,1.303,2628.3,2627.8,3.80538]
[1723802118605,5.10782,2628.3,2627.8,3.80538]
[1723802118913,6.228893,2628.3,2627.8,3.80538]
[1723802119211,3.80489,2628.2,2627.7,3.8056]
[1723802119723,1.303,2628.0,2627.6,23.23573]
[1723802119879,5.10817,2628.0,2627.6,23.23573]
[1723802121415,1.303,2628.0,2627.6,23.23573]
[1723802121586,1.303,2628.0,2627.6,27.04146]
[1723802122115,1.303,2628.2,2627.7,3.80558]
[1723802122316,1.303,2628.2,2627.8,3.80534]
[1723802122475,5.10788,2628.2,2627.8,3.80534]
[1723802122678,5.10788,2628.2,2627.8,23.23534]
[1723802123226,1.303,2628.2,2627.8,23.23534]
[1723802123721,1.303,2628.2,2627.8,27.04073]
[1723802124023,1.303,2628.2,2627.8,23.23534]
[1723802125397,5.10789,2628.2,2627.8,23.23534]
[1723802125606,6.241619,2628.2,2627.8,23.23534]
[1723802126401,5.10789,2628.2,2627.8,23.23534]
[1723802126753,1.303,2628.2,2627.8,27.04073]
[1723802127049,2.4247,2628.3,2627.9,3.80531]
[1723802128138,1.303,2628.4,2628.1,3.80502]
[1723802129006,1.303,2628.4,2627.9,7.61048]
[1723802129241,1.303,2628.4,2627.9,3.80517]
[1723802129424,1.303,2628.4,2628.0,3.80509]
[1723802133062,5.10763,2628.4,2628.0,3.80509]
[1723802133201,2.4374,2628.3,2628.0,3.80509]
[1723802133531,1.303,2628.2,2627.9,3.80531]
[1723802133898,1.303,2628.2,2627.8,19.43]
[1723802134237,3.80504,2628.1,2627.8,19.43]
[1723802134436,3.80504,2628.1,2627.7,19.43]
[1723802136196,3.80504,2628.1,2627.7,23.23559]
[1723802136402,1.303,2628.2,2627.7,23.23559]
[1723802137186,5.10789,2628.2,2627.7,23.23559]
[1723802138856,5.10789,2628.2,2627.8,3.80546]
[1723802139269,5.10789,2628.2,2627.8,6.509572]
[1723802140348,1.303,2628.2,2627.9,3.80524]
[1723802140564,2.4374,2628.3,2627.9,3.80524]
[1723802140765,3.7404,2628.3,2627.9,3.80524]
[1723802141622,1.303,2628.1,2627.8,19.43]
[1723802141768,3.6811,2628.1,2627.8,19.43]
[1723802143910,3.80496,2628.2,2627.8,23.23546]
[1723802144204,7.56204,2628.3,2627.8,28.399102]
[1723802144972,2.4543,2628.3,2627.9,3.8052]
[1723802145283,2.4543,2628.3,2627.9,4.31612288]
[1723802146670,2.4543,2628.3,2628.0,3.80508]
[1723802146973,1.303,2628.4,2628.1,3.80499]
[1723802147307,1.303,2628.4,2628.0,3.80517]
[1723802147487,5.1076,2628.4,2628.0,3.80517]
[1723802149179,5.1076,2628.4,2627.9,4.31622288]
[1723802149412,5.1076,2628.4,2627.9,3.8053]
[1723802151518,5.1076,2628.4,2627.8,3.80534]
[1723802151519,3.6871,2628.2,2627.8,3.80534]
[1723802152717,7.49201,2628.2,2627.8,3.80534]
[1723802153076,0.1294138,2628.7,2628.4,3.80452]
[1723802153274,0.1294138,2628.7,2628.3,19.43]
[1723802153796,0.1294138,2628.7,2628.3,23.23465]
[1723802154115,0.1294138,2628.7,2628.4,3.80456]
[1723802154301,0.1294138,2628.7,2628.4,3.80455]
[1723802154502,0.1294138,2628.7,2628.4,3.80456]
[1723802154678,0.1294138,2628.7,2628.4,6.508481]
[1723802155215,0.1294138,2628.7,2628.6,3.8043]
[1723802156802,0.1294138,2628.7,2628.6,7.6086]
[1723802156998,0.1294138,2628.7,2628.6,33.2]
[1723802157203,0.1294138,2628.7,2628.6,38.32677502]
[1723802157436,0.00416815,2628.7,2628.6,36.50611677]
[1723802157594,0.00013426,2628.7,2628.6,40.31041677]
[1723802157812,0.00013426,2628.7,2628.6,40.33900331]
[1723802158035,0.00013426,2628.7,2628.6,48.15730331]
[1723802158348,0.0894,2630.0,2629.7,3.80261]
[1723802158647,0.0894,2630.0,2629.8,19.43]
[1723802158939,1.3924,2630.0,2629.8,19.43]
[1723802159541,1.3924,2630.0,2629.4,19.43]
[1723802159542,3.80258,2629.8,2629.4,19.43]
[1723802159750,3.7513,2629.7,2629.4,19.43]
[1723802160043,2.4483,2629.7,2629.4,19.43]
[1723802160514,3.7513,2629.7,2629.4,19.43]
[1723802160711,7.55402,2629.7,2629.4,19.43]
[1723802160924,3.80286,2629.6,2629.2,19.43]
[1723802161133,5.18217787,2629.5,2629.2,19.43]
[1723802161330,3.80353,2629.2,2628.8,19.43]
[1723802161516,3.80353,2629.2,2628.6,23.23429]
[1723802161753,2.4483,2629.4,2628.8,3.804]
[1723802161948,2.4483,2629.4,2628.9,3.80382]
[1723802162152,3.45372,2629.4,2628.8,3.804]
[1723802162450,3.8034,2629.3,2628.7,3.80415]
[1723802162746,8.712824,2629.3,2628.7,3.80415]
[1723802162950,8.712834,2629.3,2628.7,3.80415]
[1723802163120,3.80368,2629.1,2628.6,19.43]
[1723802164704,4.909414,2629.3,2628.6,19.43]
[1723802164951,3.8034,2629.3,2628.7,3.80415]
[1723802165162,2.4483,2629.4,2628.6,24.158535]
[1723802165315,2.4483,2629.4,2628.7,3.80406]
[1723802165654,3.80288,2629.6,2628.9,3.80375]
[1723802166106,3.80326,2629.4,2628.8,0.89159988]
[1723802166306,3.80326,2629.4,2628.7,3.80402]
[1723802166512,7.60651,2629.4,2628.7,3.80402]
[1723802167013,7.60653,2629.4,2628.7,3.80402]
[1723802167238,2.3973,2629.3,2628.7,19.43]
[1723802167446,3.80383,2629.0,2628.7,19.43]
[1723802167644,6.20126,2628.9,2628.3,30.56464]
[1723802167917,3.80402,2628.8,2628.3,30.56464]
[1723802168223,3.80402,2628.8,2628.3,26.76]
[1723802168656,2.3973,2628.9,2628.3,26.76]
[1723802168657,3.80439,2628.6,2628.3,26.76]
[1723802168809,3.80459,2628.4,2628.0,19.43]
[1723802169012,6.20176,2628.5,2628.0,19.43]
[1723802169213,2.3973,2628.5,2628.0,23.23509]
[1723802169454,2.3973,2628.5,2628.1,2.704027]
[1723802169666,6.20139,2628.8,2628.2,3.80475]
[1723802169962,6.20139,2628.8,2628.2,4.31575788]
[1723802170552,3.80431,2628.6,2628.1,3.80499]
[1723802170754,6.20139,2628.8,2628.1,3.80499]
[1723802170956,3.80419,2628.7,2628.1,3.80499]
[1723802171128,3.80418,2628.7,2628.2,3.80484]
[1723802171658,10.00553,2628.8,2628.2,3.80484]
[1723802171956,3.80424,2628.7,2628.2,3.80484]
[1723802172188,2.4031,2629.0,2628.6,3.8043]
[1723802172475,3.80352,2629.2,2628.6,3.8043]
[1723802172476,3.80359,2629.1,2628.6,3.8043]
[1723802173128,1.001021,2629.1,2628.5,19.43]
[1723802173330,3.80352,2629.2,2628.6,3.80429]
[1723802173528,3.80352,2629.2,2628.6,23.74533488]
[1723802173730,3.8036,2629.1,2628.6,23.74533488]
[1723802173945,3.80352,2629.2,2628.6,23.74533488]
[1723802174460,2.4031,2629.3,2628.6,23.74533488]
[1723802174461,6.20647,2629.3,2628.6,23.74533488]
[1723802174767,6.20647,2629.3,2628.7,6.17866349]
[1723802174919,10.00987,2629.3,2628.7,6.17866349]
[1723802175115,10.00987,2629.3,2628.8,3.804]
[1723802175116,6.20647,2629.3,2628.8,3.804]
[1723802177531,6.20647,2629.3,2628.6,23.23416]
[1723802177833,3.80391,2628.9,2628.6,19.43]
[1723802178019,7.60757,2629.0,2628.6,19.43]
[1723802178475,3.80389,2628.9,2628.6,19.43]
[1723802178625,0.760764,2628.9,2628.6,19.43]
[1723802178821,9.94672,2628.7,2628.6,19.43]
[1723802179123,3.80446,2628.5,2628.0,3.80514]
[1723802179549,3.80446,2628.5,2627.9,19.43]
[1723802179731,0.07615787,2628.4,2627.9,19.43]
[1723802179933,0.07615787,2628.4,2627.9,23.2353]
[1723802180131,3.80446,2628.5,2627.9,23.23524]
[1723802180526,3.80446,2628.5,2627.9,27.04047]
[1723802180721,0.07615787,2628.6,2627.7,7.33]
[1723802180964,6.14341,2628.2,2627.7,7.33]
[1723802181264,3.80533,2627.9,2627.7,7.33]
[1723802181460,3.80546,2627.8,2627.4,19.43]
[1723802181622,3.88161787,2627.8,2627.4,19.43]
[1723802182023,0.07615787,2627.8,2627.4,19.43]
[1723802182269,3.80533,2627.9,2627.4,19.43]
[1723802182559,3.80533,2627.9,2627.4,23.23601]
[1723802183970,3.80533,2627.9,2627.4,19.43]
[1723802184962,3.80481,2628.3,2627.7,3.80555]
[1723802185668,3.80481,2628.3,2627.7,3.80552]
[1723802185875,3.80481,2628.3,2627.7,7.61104]
[1723802186037,3.80453,2628.5,2627.8,19.43]
[1723802186236,3.80453,2628.5,2627.6,0.07610217]
[1723802186237,3.80453,2628.5,2627.9,19.43]
[1723802186457,3.80453,2628.5,2627.9,23.23517]
[1723802188451,3.80453,2628.5,2628.0,3.80516]
[1723802188852,3.80453,2628.5,2627.9,23.030722]
[1723802189268,3.80452,2628.5,2628.0,3.80517]
[1723802189567,6.18422,2628.6,2628.0,6.4887592]
[1723802189871,3.80448,2628.5,2628.0,6.4887592]
[1723802190185,3.80448,2628.5,2628.0,6.4886792]
[1723802190467,3.80448,2628.5,2628.1,0.53144568]
[1723802191567,3.80467,2628.4,2628.0,19.225552]
[1723802192869,3.80448,2628.5,2628.0,23.030722]
[1723802193072,3.80433,2628.6,2628.1,3.80502]
[1723802193576,3.80433,2628.6,2628.1,3.80493]
[1723802194044,3.80411,2628.8,2628.1,3.80493]
[1723802194233,3.80411,2628.8,2628.1,4.33637568]
[1723802194632,3.80384,2629.0,2628.2,21.571252]
[1723802194944,3.80402,2628.8,2628.3,3.80466]
[1723802195145,3.80419,2628.7,2628.2,25.376132]
[1723802195659,3.80402,2628.8,2628.3,3.80472]
[1723802195832,3.80402,2628.8,2628.3,6.4883092]